bitfinex-derivatives/quotes_BTCF0:USTF0_20250324
["timestamp","ask_amount","ask_price","bid_price","bid_amount"]
[1742801446585,0.70675833,86952.0,86951.0,0.01552189]
[1742801446793,0.72133031,86952.0,86951.0,0.01552189]
[1742801447081,0.1150076,86950.0,86949.0,0.1150064]
[1742801447287,0.4766476,86950.0,86949.0,0.1156064]
[1742801447482,0.5323476,86950.0,86949.0,0.1156064]
[1742801447673,0.5894476,86950.0,86949.0,0.2278064]
[1742801447879,0.70445424,86950.0,86949.0,0.2278064]
[1742801448079,0.70445424,86950.0,86949.0,0.0579]
[1742801448278,0.0575053,86947.0,86924.0,0.38749737]
[1742801448484,0.1150142,86944.0,86937.0,0.1150226]
[1742801448683,0.2308942,86944.0,86937.0,0.1150226]
[1742801448983,0.34590348,86944.0,86936.0,0.2300477]
[1742801449281,0.34590348,86944.0,86939.0,0.1150203]
[1742801449877,0.34590348,86944.0,86939.0,0.2300408]
[1742801450077,0.34590348,86944.0,86943.0,0.11547557]
[1742801450480,0.34590348,86944.0,86943.0,0.11607557]
[1742801450987,0.34590348,86944.0,86943.0,0.28747557]
[1742801452088,0.34590348,86944.0,86943.0,0.23057557]
[1742801452581,0.34590348,86944.0,86943.0,0.11607557]
[1742801452784,0.46330348,86944.0,86943.0,0.11547557]
[1742801453085,0.46330348,86944.0,86943.0,0.11631557]
[1742801453877,0.1150354,86928.0,86907.0,0.3608]
[1742801454085,0.1150486,86918.0,86917.0,0.0553]
[1742801454282,0.2300886,86918.0,86917.0,0.1150499]
[1742801454586,0.2300886,86918.0,86915.0,0.1158]
[1742801454587,0.1150513,86916.0,86915.0,0.1158]
[1742801455192,0.34420557,86916.0,86915.0,0.2308526]
[1742801455375,0.34420557,86916.0,86915.0,0.2861526]
[1742801455976,0.22915427,86916.0,86915.0,0.2861526]
[1742801456178,0.1150566,86912.0,86908.0,0.274571]
[1742801456986,0.23011087,86912.0,86908.0,0.274571]
[1742801457292,0.51013427,86912.0,86887.0,0.4666924]
[1742801457591,0.1150751,86898.0,86887.0,0.4666924]
[1742801457788,0.2301551,86898.0,86888.0,0.1687879]
[1742801458391,0.35372704,86898.0,86888.0,0.1687879]
[1742801458986,0.35372704,86898.0,86893.0,0.1150807]
[1742801458987,0.2301532,86898.0,86893.0,0.1150807]
[1742801459189,0.2301532,86898.0,86896.0,0.1111]
[1742801459190,0.3452332,86898.0,86896.0,0.1111]
[1742801459489,0.2301581,86898.0,86896.0,0.2261777]
[1742801459791,0.1150781,86898.0,86897.0,0.1150764]
[1742801459993,0.11615811,86898.0,86897.0,0.1156764]
[1742801460290,0.1725995,86905.0,86904.0,0.1150658]
[1742801460491,0.058293,86905.0,86904.0,0.1156658]
[1742801460682,0.1158381,86905.0,86904.0,0.1156658]
[1742801460883,8e-05,86908.0,86904.0,0.1156658]
[1742801461087,0.11572001,86918.0,86917.0,0.1150499]
[1742801461283,0.00120002,86918.0,86917.0,0.1150499]
[1742801461485,0.23071546,86918.0,86917.0,0.1157299]
[1742801461689,0.11566686,86918.0,86917.0,0.1157299]
[1742801461893,0.11564861,86918.0,86917.0,0.00068]
[1742801462191,0.28871546,86918.0,86917.0,0.00068]
[1742801462388,0.34661546,86918.0,86917.0,0.00068]
[1742801462594,0.34861546,86918.0,86917.0,0.00068]
[1742801462795,0.34861546,86918.0,86917.0,0.1157299]
[1742801462991,0.00260001,86918.0,86917.0,0.1157299]
[1742801463289,0.00460001,86918.0,86917.0,0.1157299]
[1742801463481,0.00017257,86926.0,86921.0,0.0575216]
[1742801463682,0.00077258,86926.0,86925.0,0.4758394]
[1742801463899,0.00017257,86926.0,86925.0,0.49330346]
[1742801464096,0.00017257,86926.0,86925.0,0.50870737]
[1742801464394,0.23025161,86926.0,86925.0,0.13112331]
[1742801464582,0.11581362,86926.0,86925.0,0.13112331]
[1742801464783,0.23085162,86926.0,86925.0,0.13112331]
[1742801465590,0.23085162,86926.0,86925.0,0.01608391]
[1742801465789,0.23285162,86926.0,86925.0,0.01608391]
[1742801466188,0.29175162,86926.0,86925.0,0.01608391]
[1742801466393,0.29175162,86926.0,86925.0,0.13044331]
[1742801466590,0.29375162,86926.0,86925.0,0.13104331]
[1742801466788,0.29675162,86926.0,86925.0,0.24784331]
[1742801468993,0.29575162,86926.0,86925.0,0.2324394]
[1742801469491,0.00777258,86926.0,86925.0,0.2324394]
[1742801469697,0.00717257,86926.0,86925.0,0.28422835]
[1742801469994,0.0579,86940.0,86935.0,0.1150261]
[1742801470189,0.00104,86936.0,86935.0,0.4764661]
[1742801470388,0.0004,86936.0,86935.0,0.4764661]
[1742801470592,0.1154252,86936.0,86935.0,0.4764661]
[1742801470786,0.11602521,86936.0,86935.0,0.5919661]
[1742801471497,0.11602521,86936.0,86935.0,0.47694]
[1742801471697,0.17392521,86936.0,86935.0,0.5919661]
[1742801471996,0.17892521,86936.0,86935.0,0.5929661]
[1742801472688,0.18392521,86936.0,86935.0,0.5929661]
[1742801476397,0.18392521,86936.0,86935.0,0.42054]
[1742801476703,0.29895301,86936.0,86935.0,0.1166661]
[1742801477003,0.65975301,86936.0,86935.0,0.1166661]
[1742801477388,0.65975301,86936.0,86935.0,0.00164]
[1742801477593,0.65975301,86936.0,86935.0,0.1160261]
[1742801477993,0.65975301,86936.0,86935.0,0.00164]
[1742801478199,0.65975301,86936.0,86935.0,0.001]
[1742801479597,0.65975301,86936.0,86935.0,0.0016]
[1742801479803,0.65975301,86936.0,86935.0,0.001]
[1742801481008,0.1150526,86915.0,86914.0,0.0575269]
[1742801481200,0.11565261,86915.0,86914.0,0.0581269]
[1742801481594,0.11565261,86915.0,86914.0,0.0006]
[1742801481899,0.34478041,86915.0,86914.0,0.1150539]
[1742801482098,0.34478041,86915.0,86914.0,0.1156539]
[1742801482900,0.34878041,86915.0,86914.0,0.1156539]
[1742801483699,0.35178041,86915.0,86914.0,0.1156539]
[1742801485004,0.34878041,86915.0,86914.0,0.1156539]
[1742801485202,0.35178041,86915.0,86914.0,0.1156539]
[1742801485404,0.34778041,86915.0,86914.0,0.1156539]
[1742801485600,0.34978041,86915.0,86914.0,0.1695539]
[1742801485804,0.23172781,86915.0,86914.0,0.1695539]
[1742801486100,0.34878041,86915.0,86914.0,0.2277539]
[1742801486306,0.34978041,86915.0,86914.0,0.2277539]
[1742801488306,0.34678041,86915.0,86914.0,0.2277539]
[1742801488501,0.34978041,86915.0,86914.0,0.2277539]
[1742801489096,0.06150001,86915.0,86914.0,0.5885539]
[1742801489308,0.0609,86915.0,86914.0,0.5885539]
[1742801489807,0.05837257,86923.0,86922.0,0.1150433]
[1742801489999,0.05901257,86923.0,86922.0,0.4764433]
[1742801490199,0.05837257,86923.0,86922.0,0.1156433]
[1742801490400,0.05837257,86923.0,86922.0,0.4764433]
[1742801490596,0.05837257,86923.0,86922.0,0.5892433]
[1742801490806,0.05837257,86923.0,86922.0,0.2284433]
[1742801491005,0.17401458,86923.0,86922.0,0.2284433]
[1742801491205,0.05897258,86923.0,86922.0,0.2284433]
[1742801491614,0.05897258,86923.0,86922.0,0.24206749]
[1742801491804,0.00017257,86923.0,86922.0,0.2284433]
[1742801492003,0.00417257,86923.0,86922.0,0.2284433]
[1742801492608,0.00817257,86923.0,86922.0,0.2284433]
[1742801492809,0.00617257,86923.0,86922.0,0.2284433]
[1742801493216,0.00217257,86923.0,86922.0,0.2284433]
[1742801493508,0.11811257,86923.0,86922.0,0.2284433]
[1742801493711,0.11747257,86923.0,86922.0,0.2284433]
[1742801493900,0.05847257,86923.0,86922.0,0.2284433]
[1742801494107,0.00417257,86923.0,86922.0,0.2284433]
[1742801494417,0.1133,86932.0,86931.0,0.1150314]
[1742801494616,0.1133,86932.0,86931.0,0.4758314]
[1742801495210,0.22893011,86932.0,86931.0,0.3614]
[1742801495404,0.28586051,86932.0,86910.0,0.3608]
[1742801495709,0.1150417,86924.0,86923.0,0.115042]
[1742801496016,0.057519,86926.0,86925.0,0.1150394]
[1742801496312,0.1150364,86928.0,86927.0,0.1150359]
[1742801496697,0.1150364,86928.0,86925.0,0.0575194]
[1742801496698,0.1150382,86926.0,86925.0,0.1150389]
[1742801496900,0.23007998,86928.0,86927.0,0.1150351]
[1742801497306,0.1150363,86928.0,86927.0,0.1150351]
[1742801497713,0.1725597,86926.0,86925.0,0.1150385]
[1742801497907,0.057522,86922.0,86913.0,0.0575271]
[1742801498114,0.1150513,86916.0,86915.0,0.1725749]
[1742801498305,0.40798,86934.0,86915.0,0.3608]
[1742801498610,0.12769257,86940.0,86935.0,0.1150261]
[1742801498815,0.1154248,86936.0,86935.0,0.1150261]
[1742801499018,0.0004,86936.0,86935.0,0.1150261]
[1742801499204,0.11545162,86936.0,86935.0,0.1150261]
[1742801499399,0.23047642,86936.0,86935.0,0.1150261]
[1742801499713,0.34877642,86936.0,86935.0,0.1150261]
[1742801500211,0.35445642,86936.0,86935.0,0.1157061]
[1742801500715,0.35745642,86936.0,86935.0,0.1157061]
[1742801501817,0.24243162,86936.0,86935.0,0.1157061]
[1742801502710,0.12738,86936.0,86935.0,0.1157061]
[1742801503099,0.2424048,86936.0,86935.0,0.1157061]
[1742801503299,0.12738,86936.0,86935.0,0.1157061]
[1742801504413,0.2424048,86936.0,86935.0,0.1157061]
[1742801504911,0.12738,86936.0,86935.0,0.1157061]
[1742801506012,0.2424048,86936.0,86935.0,0.1157061]
[1742801506517,0.12738,86936.0,86935.0,0.1157061]
[1742801509219,0.2424048,86936.0,86935.0,0.1157061]
[1742801509712,0.12738,86936.0,86935.0,0.1157061]
[1742801510112,0.18178,86936.0,86935.0,0.1157061]
[1742801510315,0.2968048,86936.0,86935.0,0.1157061]
[1742801510606,0.18178,86936.0,86935.0,0.1157061]
[1742801511018,0.2968048,86936.0,86935.0,0.1157061]
[1742801511221,0.4118326,86936.0,86935.0,0.00068]
[1742801511715,0.8301465,86936.0,86935.0,0.1150261]
[1742801511919,0.84406351,86936.0,86935.0,0.1150261]
[1742801512215,0.0575144,86933.0,86927.0,0.00017257]
[1742801512414,0.1150354,86928.0,86927.0,0.00077257]
[1742801512716,0.6037954,86928.0,86927.0,0.11588927]
[1742801512911,0.3580232,86928.0,86927.0,0.11588927]
[1742801513811,0.3580232,86928.0,86927.0,0.00085257]
[1742801514021,0.3620232,86928.0,86927.0,0.11588927]
[1742801514223,0.3620232,86928.0,86927.0,0.00085257]
[1742801514609,0.3620232,86928.0,86927.0,0.00017257]
[1742801515122,0.3620232,86928.0,86927.0,0.11520927]
[1742801515323,0.3620232,86928.0,86927.0,0.00085257]
[1742801516111,0.3620232,86928.0,86927.0,0.00017257]
[1742801516308,0.3650232,86928.0,86927.0,0.00081257]
[1742801516924,0.3650232,86928.0,86927.0,0.11584927]
[1742801517125,0.2499878,86928.0,86927.0,0.11584927]
[1742801517314,0.1227078,86928.0,86927.0,0.22754927]
[1742801517623,0.00768,86928.0,86927.0,0.22754927]
[1742801517814,0.007,86928.0,86927.0,0.22754927]
[1742801518714,0.00760001,86928.0,86927.0,0.22754927]
[1742801519318,0.06440001,86928.0,86927.0,0.22754927]
[1742801519517,0.00760001,86928.0,86927.0,0.35494927]
[1742801519714,8e-05,86929.0,86927.0,0.35494927]
[1742801519715,0.0004,86936.0,86935.0,0.1150261]
[1742801520025,0.00100001,86936.0,86935.0,0.1156261]
[1742801520421,0.00100001,86936.0,86935.0,0.2323261]
[1742801520725,0.00100001,86936.0,86935.0,0.24584051]
[1742801521120,0.00600001,86936.0,86935.0,0.24584051]
[1742801522329,0.01100001,86936.0,86935.0,0.24584051]
[1742801522721,0.01100001,86936.0,86935.0,0.37280051]
[1742801522916,0.01100001,86936.0,86935.0,0.73360051]
[1742801523122,0.24105261,86936.0,86935.0,0.0006]
[1742801523318,0.24105261,86936.0,86935.0,0.1156261]
[1742801523620,0.24105261,86936.0,86935.0,0.0006]
[1742801523824,0.1150301,86932.0,86931.0,0.0575153]
[1742801524024,0.1156701,86932.0,86931.0,0.0575153]
[1742801524228,0.1156701,86932.0,86927.0,0.11520747]
[1742801524229,0.1150354,86928.0,86927.0,0.11520747]
[1742801524425,0.1150336,86930.0,86929.0,0.1150327]
[1742801524629,0.1157136,86930.0,86929.0,0.1157127]
[1742801524920,0.1157136,86930.0,86929.0,0.23813228]
[1742801524921,0.2310136,86930.0,86929.0,0.23813228]
[1742801525127,0.3460467,86930.0,86929.0,0.12853228]
[1742801525928,0.3460467,86930.0,86929.0,0.1157127]
[1742801526327,0.3500467,86930.0,86929.0,0.1157127]
[1742801527424,0.3500467,86930.0,86929.0,0.2285127]
[1742801527632,0.3520467,86930.0,86929.0,0.2285127]
[1742801527830,0.3520467,86930.0,86929.0,0.24137295]
[1742801528040,0.3520467,86930.0,86929.0,0.18587295]
[1742801528232,0.3520467,86930.0,86929.0,0.12857295]
[1742801528425,0.3520467,86930.0,86929.0,0.1679444]
[1742801529428,0.8404867,86930.0,86929.0,0.0529117]
[1742801529731,0.0575229,86921.0,86918.0,0.0575242]
[1742801529934,0.1150473,86919.0,86918.0,0.1731721]
[1742801530121,0.11564731,86919.0,86918.0,0.1731721]
[1742801530321,0.22744731,86919.0,86918.0,0.1731721]
[1742801531429,0.22744731,86919.0,86918.0,0.0006]
[1742801531622,0.34249761,86919.0,86918.0,0.0006]
[1742801531827,0.34249761,86919.0,86918.0,0.1156486]
[1742801532733,0.34249761,86919.0,86918.0,0.1719486]
[1742801533236,0.34549761,86919.0,86918.0,0.1719486]
[1742801533732,0.34249761,86919.0,86918.0,0.1719486]
[1742801533928,0.34449761,86919.0,86918.0,0.1719486]
[1742801534537,0.34649761,86919.0,86918.0,0.1719486]
[1742801535039,0.34449761,86919.0,86918.0,0.0006]
[1742801535228,0.34649761,86919.0,86918.0,0.0006]
[1742801536041,0.34449761,86919.0,86918.0,0.0006]
[1742801536238,0.1150526,86915.0,86914.0,0.1150532]
[1742801536438,0.11565261,86915.0,86914.0,0.1150532]
[1742801536638,0.11565261,86915.0,86914.0,0.1157332]
[1742801536938,0.23070291,86915.0,86914.0,0.1157332]
[1742801537443,0.23270291,86915.0,86914.0,0.1157332]
[1742801538540,0.23370291,86915.0,86914.0,0.1157332]
[1742801540047,0.23370291,86915.0,86914.0,0.2280332]
[1742801540741,0.23370291,86915.0,86914.0,0.1157332]
[1742801542038,0.23370291,86915.0,86910.0,0.00017257]
[1742801542245,0.1150777,86896.0,86895.0,0.17307422]
[1742801542444,0.1159977,86896.0,86895.0,0.00106032]
[1742801542644,0.1159977,86896.0,86895.0,0.00046032]
[1742801542942,0.23105594,86896.0,86895.0,0.00046032]
[1742801543534,0.34245594,86896.0,86895.0,0.00046032]
[1742801543734,0.34245594,86896.0,86895.0,0.00346032]
[1742801543940,0.35600236,86896.0,86895.0,0.00346032]
[1742801545138,0.35600236,86896.0,86895.0,0.11949942]
[1742801545343,0.35600236,86896.0,86895.0,0.12253942]
[1742801545543,0.35600236,86896.0,86895.0,0.00746032]
[1742801545935,0.35600236,86896.0,86895.0,0.12253942]
[1742801546739,0.35600236,86896.0,86895.0,0.00746032]
[1742801547737,0.35600236,86896.0,86895.0,0.12253942]
[1742801547948,0.35600236,86896.0,86895.0,0.12313942]
[1742801548335,0.34245594,86896.0,86895.0,0.12313942]
[1742801549050,0.05672,86896.0,86895.0,0.17813942]
[1742801549241,0.112,86896.0,86895.0,0.17813942]
[1742801549441,0.11292,86896.0,86895.0,0.17813942]
[1742801550346,0.11292,86896.0,86895.0,0.19291711]
[1742801551045,0.34307845,86896.0,86895.0,0.02283801]
[1742801551250,0.34307845,86896.0,86895.0,0.13791711]
[1742801551449,0.47027845,86896.0,86895.0,0.13791711]
[1742801551853,0.47027845,86896.0,86895.0,0.12313942]
[1742801553545,0.35500075,86896.0,86895.0,0.17823942]
[1742801553752,0.34307845,86896.0,86895.0,0.17823942]
[1742801553937,0.11600075,86896.0,86895.0,0.17823942]
[1742801554144,8e-05,86897.0,86896.0,0.1150777]
[1742801554452,8e-05,86897.0,86896.0,0.2271777]
[1742801554657,0.1150696,86903.0,86902.0,0.1150685]
[1742801555046,0.28904903,86903.0,86902.0,0.1150685]
[1742801555349,0.28996903,86903.0,86902.0,0.1150685]
[1742801555653,0.28996903,86903.0,86902.0,0.1156685]
[1742801555854,0.28904903,86903.0,86902.0,0.1150685]
[1742801556650,0.0575368,86900.0,86897.0,0.0575376]
[1742801556844,0.1150751,86898.0,86897.0,0.1726127]
[1742801557147,0.1125,86899.0,86898.0,0.1150751]
[1742801557350,0.0556,86899.0,86898.0,0.1150751]
[1742801557544,0.0546,86899.0,86898.0,0.1150751]
[1742801558344,0.0575276,86913.0,86908.0,0.1150619]
[1742801558545,0.3608,86917.0,86902.0,0.0575346]
[1742801558546,0.1725824,86914.0,86913.0,0.1150539]
[1742801558949,0.1725941,86909.0,86908.0,0.0575306]
[1742801559547,0.28767088,86909.0,86908.0,0.0575306]
[1742801559748,0.64847088,86909.0,86908.0,0.07258811]
[1742801560156,0.28767088,86909.0,86908.0,0.0575306]
[1742801560342,0.34707088,86909.0,86908.0,0.0581706]
[1742801560658,0.35107088,86909.0,86908.0,0.0581706]
[1742801560857,0.40797088,86909.0,86908.0,0.0581706]
[1742801561159,0.41197088,86909.0,86908.0,0.0581706]
[1742801561347,0.41197088,86909.0,86908.0,0.0575306]
[1742801561656,0.1150658,86905.0,86904.0,0.0575332]
[1742801561853,0.1159858,86905.0,86904.0,0.0575332]
[1742801562049,0.00092,86905.0,86904.0,0.0581332]
[1742801562249,0.23104934,86905.0,86904.0,0.0581332]
[1742801562446,0.34304934,86905.0,86904.0,0.0581332]
[1742801563549,0.34304934,86905.0,86904.0,0.07304414]
[1742801563946,0.34904934,86905.0,86904.0,0.07304414]
[1742801565350,0.23398354,86905.0,86904.0,0.07304414]
[1742801565551,0.34904934,86905.0,86904.0,0.07304414]
[1742801567263,0.23398354,86905.0,86904.0,0.07304414]
[1742801568056,0.34904934,86905.0,86904.0,0.07304414]
[1742801568461,0.23398354,86905.0,86904.0,0.07304414]
[1742801569055,0.12198354,86905.0,86904.0,0.07304414]
[1742801569360,0.006,86905.0,86904.0,0.07304414]
[1742801569562,0.00696001,86905.0,86904.0,0.07304414]
[1742801569956,0.0572,86913.0,86912.0,0.1150566]
[1742801570152,0.0572,86913.0,86912.0,0.4765366]
[1742801570352,0.17290883,86913.0,86912.0,0.49144754]
[1742801570552,0.23060883,86913.0,86912.0,0.54564754]
[1742801570760,0.23060883,86913.0,86912.0,0.60264754]
[1742801570953,0.00064,86913.0,86912.0,0.60264754]
[1742801571156,0.00564,86913.0,86912.0,0.60264754]
[1742801571366,0.00664,86913.0,86912.0,0.60264754]
[1742801571558,0.06384,86913.0,86912.0,0.60264754]
[1742801571751,0.05884,86913.0,86912.0,0.60264754]
[1742801572055,0.1758952,86913.0,86912.0,0.37639094]
[1742801572262,0.29095344,86913.0,86912.0,0.01559094]
[1742801572455,0.29095344,86913.0,86912.0,0.13060754]
[1742801573063,0.34895344,86913.0,86912.0,0.13060754]
[1742801573754,0.34895344,86913.0,86912.0,0.1156966]
[1742801573955,0.34895344,86913.0,86912.0,0.2318966]
[1742801574362,0.34895344,86913.0,86912.0,0.24687885]
[1742801576162,0.34895344,86913.0,86912.0,0.13067885]
[1742801576768,0.34895344,86913.0,86912.0,0.1156966]
[1742801578360,0.34895344,86913.0,86912.0,0.13072948]
[1742801581159,0.34895344,86913.0,86912.0,0.01567288]
[1742801581367,0.34895344,86913.0,86912.0,0.1156966]
[1742801581962,0.34895344,86913.0,86912.0,0.00064]
[1742801583266,0.34895344,86913.0,86912.0,0.1156966]
[1742801584271,0.34895344,86913.0,86910.0,0.057529]
[1742801584272,0.1150777,86896.0,86888.0,0.0575438]
[1742801584461,0.1159177,86896.0,86895.0,0.01531465]
[1742801584661,0.1159177,86896.0,86895.0,0.01599465]
[1742801584870,0.1159177,86896.0,86895.0,0.01531465]
[1742801585074,0.23099845,86896.0,86895.0,0.01591465]
[1742801585258,0.34519845,86896.0,86895.0,0.01591465]
[1742801585462,0.34519845,86896.0,86895.0,0.00346032]
[1742801585871,0.34519845,86896.0,86895.0,0.00406032]
[1742801586359,0.34519845,86896.0,86895.0,0.00346032]
[1742801586765,0.34519845,86896.0,86895.0,0.01880742]
[1742801587775,0.34519845,86896.0,86895.0,0.01940742]
[1742801587970,0.34519845,86896.0,86895.0,0.01640742]
[1742801588361,0.35838022,86896.0,86895.0,0.01580742]
[1742801589564,0.34519845,86896.0,86895.0,0.01580742]
[1742801589760,0.34519845,86896.0,86895.0,0.01644742]
[1742801590573,0.34519845,86896.0,86895.0,0.13152652]
[1742801591170,0.34519845,86896.0,86895.0,0.25062652]
[1742801592080,0.34619845,86896.0,86895.0,0.25062652]
[1742801592574,0.34619845,86896.0,86895.0,0.13554742]
[1742801592874,0.34619845,86896.0,86895.0,0.13582742]
[1742801595675,0.47043845,86896.0,86895.0,0.13582742]
[1742801597078,0.47043845,86896.0,86895.0,0.0162671]
[1742801597277,0.47043845,86896.0,86879.0,0.00046041]
[1742801597278,0.0575471,86884.0,86879.0,0.00046041]
[1742801597468,0.1151122,86870.0,86861.0,0.00873667]
[1742801597776,0.11631221,86870.0,86869.0,0.20757488]
[1742801597977,0.23141151,86870.0,86869.0,0.20757488]
[1742801598364,0.70741151,86870.0,86869.0,0.20757488]
[1742801598567,0.70741151,86870.0,86869.0,0.32268838]
[1742801599174,0.70741151,86870.0,86869.0,0.0012]
[1742801599475,0.1151162,86867.0,86866.0,0.0594]
[1742801599678,0.11631621,86867.0,86866.0,0.0594]
[1742801599878,0.11631621,86867.0,86866.0,0.1751175]
[1742801600275,0.23143141,86867.0,86866.0,0.1751175]
[1742801600982,0.23143141,86867.0,86866.0,0.1157175]
[1742801601176,0.23143141,86867.0,86866.0,0.0006]
[1742801601374,0.23143141,86867.0,86866.0,0.003]
[1742801602681,0.23143141,86867.0,86866.0,0.00368]
[1742801603381,0.23143141,86867.0,86866.0,0.1187975]
[1742801604677,0.23143141,86867.0,86866.0,0.1782975]
[1742801605482,0.35203141,86867.0,86866.0,0.1782975]
[1742801606092,0.47575141,86867.0,86866.0,0.1782975]
[1742801606888,0.47575141,86867.0,86866.0,0.19146616]
[1742801607082,0.47575141,86867.0,86866.0,0.1762975]
[1742801607284,0.47775141,86867.0,86866.0,0.1762975]
[1742801607885,0.47775141,86867.0,86866.0,0.1752975]
[1742801608092,0.47975141,86867.0,86866.0,0.1752975]
[1742801608287,0.47975141,86867.0,86866.0,0.06018]
[1742801608495,0.47975141,86867.0,86866.0,0.1752975]
[1742801608786,0.47775141,86867.0,86866.0,0.2324975]
[1742801609091,0.48075141,86867.0,86866.0,0.2324975]
[1742801610081,0.48075141,86867.0,86866.0,0.11738]
[1742801610290,0.48075141,86867.0,86863.0,0.00046049]
[1742801610291,0.1151201,86864.0,86863.0,0.00046049]
[1742801610489,0.11624011,86864.0,86863.0,0.00046049]
[1742801610694,0.11624011,86864.0,86863.0,0.01675237]
[1742801610894,0.23136326,86864.0,86863.0,0.13355237]
[1742801611301,0.23136326,86864.0,86863.0,0.11794049]
[1742801611502,0.23336326,86864.0,86863.0,0.23306199]
[1742801612103,0.23636326,86864.0,86863.0,0.23306199]
[1742801613705,0.23336326,86864.0,86863.0,0.23306199]
[1742801613902,0.23536326,86864.0,86863.0,0.23306199]
[1742801614407,0.23536326,86864.0,86863.0,0.13188461]
[1742801615205,0.23636326,86864.0,86863.0,0.13188461]
[1742801615398,0.23636326,86864.0,86863.0,0.00114049]
[1742801615601,0.23636326,86864.0,86863.0,0.00046049]
[1742801615795,0.23636326,86864.0,86863.0,0.11558199]
[1742801616100,0.23636326,86864.0,86863.0,0.11618199]
[1742801616291,0.23636326,86864.0,86863.0,0.00106049]
[1742801616492,0.23636326,86864.0,86863.0,0.11558199]
[1742801616696,0.23636326,86864.0,86863.0,0.13211834]
[1742801616892,0.23636326,86864.0,86863.0,0.24991834]
[1742801617694,0.23336326,86864.0,86863.0,0.23454199]
[1742801617900,0.23636326,86864.0,86863.0,0.23454199]
[1742801618299,0.23336326,86864.0,86863.0,0.23454199]
[1742801618495,0.23636326,86864.0,86863.0,0.23454199]
[1742801619009,0.23336326,86864.0,86863.0,0.23454199]
[1742801619306,0.36092326,86864.0,86863.0,0.23454199]
[1742801619711,0.36092326,86864.0,86863.0,0.24982977]
[1742801621402,0.35892326,86864.0,86863.0,0.24982977]
[1742801621607,0.36092326,86864.0,86863.0,0.24982977]
[1742801621809,0.35692326,86864.0,86863.0,0.13470827]
[1742801622009,0.35992326,86864.0,86863.0,0.13354827]
[1742801622209,0.35792326,86864.0,86863.0,0.24978977]
[1742801622409,0.35992326,86864.0,86863.0,0.13466827]
[1742801622705,0.23636326,86864.0,86863.0,0.13466827]
[1742801622905,0.36012326,86864.0,86863.0,0.13466827]
[1742801625011,0.35712326,86864.0,86863.0,0.13466827]
[1742801625215,0.36112326,86864.0,86863.0,0.13354827]
[1742801626912,0.36112326,86864.0,86863.0,0.13414827]
[1742801627816,0.36112326,86864.0,86863.0,0.15906985]
[1742801628115,0.47592326,86864.0,86863.0,0.15906985]
[1742801628519,0.47592326,86864.0,86863.0,0.04126985]
[1742801628717,0.47592326,86864.0,86863.0,0.04066985]
[1742801630520,0.47592326,86864.0,86863.0,0.04126985]
[1742801631015,0.47592326,86864.0,86863.0,0.04066985]
[1742801631219,0.47592326,86864.0,86863.0,0.04126985]
[1742801632923,0.47592326,86864.0,86863.0,0.01634827]
[1742801635812,0.47592326,86864.0,86863.0,0.01574827]
[1742801636221,0.47592326,86864.0,86863.0,0.01634827]
[1742801636420,0.47560326,86864.0,86863.0,0.13146977]
[1742801637524,0.35216326,86864.0,86863.0,0.27751692]
[1742801637717,0.47568326,86864.0,86863.0,0.27751692]
[1742801638110,0.35216326,86864.0,86863.0,0.27751692]
[1742801638315,0.47560326,86864.0,86863.0,0.27751692]
[1742801641418,0.35216326,86864.0,86863.0,0.27751692]
[1742801645819,0.35216326,86864.0,86863.0,0.16239542]
[1742801646024,0.35216326,86864.0,86863.0,0.27751692]
[1742801647716,0.35216326,86864.0,86863.0,0.23718199]
[1742801654231,0.35216326,86864.0,86863.0,0.27836889]
[1742801655730,0.36510915,86864.0,86863.0,0.27836889]
[1742801658831,0.36510915,86864.0,86861.0,0.1151228]
[1742801658832,0.0575637,86859.0,86847.0,0.22482009]
[1742801659036,0.4759413,86848.0,86847.0,0.22542009]
[1742801659231,0.4759413,86848.0,86847.0,0.13092009]
[1742801659232,0.5989813,86848.0,86847.0,0.13092009]
[1742801659435,0.5989813,86848.0,86847.0,0.13032009]
[1742801659629,0.1151466,86844.0,86843.0,0.27561746]
[1742801659830,0.1151466,86844.0,86843.0,0.27621746]
[1742801660030,0.1164666,86844.0,86843.0,0.27621746]
[1742801660337,0.23161096,86844.0,86843.0,0.27621746]
[1742801660927,0.23261096,86844.0,86843.0,0.27621746]
[1742801662233,0.24531805,86844.0,86843.0,0.27621746]
[1742801662435,0.36761805,86844.0,86843.0,0.0006]
[1742801662642,0.38247145,86844.0,86831.0,0.1151598]
[1742801662831,0.1151693,86832.0,86831.0,0.0575804]
[1742801663036,0.11672931,86832.0,86831.0,0.0575804]
[1742801663237,0.29852931,86832.0,86831.0,0.0575804]
[1742801663433,0.36062931,86832.0,86831.0,0.0575804]
[1742801663745,0.48857483,86832.0,86831.0,0.0575804]
[1742801663940,0.47577897,86832.0,86831.0,0.0585804]
[1742801664141,0.47577897,86832.0,86831.0,0.0591804]
[1742801666532,0.47577897,86832.0,86831.0,0.0581804]
[1742801668548,0.35417897,86832.0,86831.0,0.0581804]
[1742801669248,0.23187897,86832.0,86831.0,0.0581804]
[1742801670645,0.11670967,86832.0,86831.0,0.0581804]
[1742801671047,0.23187227,86832.0,86831.0,0.0581804]
[1742801671250,0.23187227,86832.0,86831.0,0.07407409]
[1742801671453,0.29487227,86832.0,86831.0,0.01649369]
[1742801671755,0.35547227,86832.0,86831.0,0.13165759]
[1742801672052,0.35547227,86832.0,86831.0,0.0619]
[1742801672349,0.35547227,86832.0,86831.0,0.08732973]
[1742801672740,0.35547227,86832.0,86831.0,0.07779234]
[1742801673545,0.35547227,86832.0,86831.0,0.0619]
[1742801673946,0.35547227,86832.0,86831.0,0.1770639]
[1742801675251,0.35547227,86832.0,86831.0,0.21933189]
[1742801676250,0.35547227,86832.0,86831.0,0.04286799]
[1742801676554,0.1151705,86826.0,86825.0,0.063]
[1742801676750,0.2375305,86826.0,86825.0,0.063]
[1742801677057,0.1151772,86821.0,86820.0,0.1151779]
[1742801677246,0.11673721,86821.0,86820.0,0.1158579]
[1742801677445,0.11673721,86821.0,86820.0,0.13201727]
[1742801677642,0.24033721,86821.0,86820.0,0.13201727]
[1742801677847,0.35451074,86821.0,86820.0,0.1158579]
[1742801678249,0.35451074,86821.0,86820.0,0.00068]
[1742801678447,0.1131785,86820.0,86819.0,0.063]
[1742801678654,0.1126585,86820.0,86819.0,0.063]
[1742801678844,0.2362585,86820.0,86819.0,0.063]
[1742801679044,0.35143999,86820.0,86819.0,0.06364]
[1742801679245,0.35143999,86820.0,86819.0,0.063]
[1742801679445,0.34843999,86820.0,86819.0,0.063]
[1742801680045,0.0575941,86813.0,86806.0,0.1151963]
[1742801680354,0.1151957,86808.0,86807.0,0.2307912]
[1742801680553,0.1168757,86808.0,86807.0,0.2307912]
[1742801680955,0.1168757,86808.0,86807.0,0.4035803]
[1742801681148,0.00168,86808.0,86807.0,0.41973536]
[1742801681347,0.11687741,86808.0,86807.0,0.41973536]
[1742801682549,0.23207181,86808.0,86807.0,0.41973536]
[1742801682751,0.11687741,86808.0,86807.0,0.42273536]